Cogmind - Beta 14 @@@ ROGUE MODE // 2025.01.07 @ 16:24:38 // Winter2021/Sauler Player: 7604 Result: Self-destructed Performance ------------- Evolutions (9) 4500 Regions Visited (25) 5000 Robots Destroyed (208) 1040 Value Destroyed (5907) 5907 Prototype IDs (67) 1340 Alien Tech Used (1) 200 Bonus (3545) 3545 TOTAL SCORE: 21532 Bonus ------- High Alert Combat Kills 307 Follower Combat Kills 2045 Network Hubs Disabled 200 Registered with UFD 300 Met Imprinter 300 Met Zhirov 300 Built Enhanced Grunts 300 Friendly Fire -207 Cogmind --------- Core Integrity 1299/1600 Matter 95/300 Energy 5/100 System Corruption 8% Temperature Cool (4) Movement Flying (32) Location -1/Access Parts ------- > --- POWER (2) -------- (None) > --- PROPULSION (7) --- Field Propulsion Array Diametric Drive > --- UTILITY (14) ----- Medium Storage Unit Enhanced Optical Array Advanced Signal Interpreter Improved Hacking Suite Improved Hacking Suite Experimental Hacking Suite System Shield Advanced System Shield > --- WEAPON (2) ------- Force Lance > --- INVENTORY (10) --- Cooled Field Propulsion Drive Q-thruster Experimental Q-thruster Advanced Sensor Array Stasis Canceller Transmission Jammer Experimental Propulsion Shielding Transdimensional Reconstructor Micro-nuke Launcher Micro-nuke Launcher Peak State ------------ > --- POWER ------------ Improved Ion Engine Light Antimatter Reactor > --- PROPULSION ------- Improved Cesium-ion Thruster Improved Surge Thruster Field Propulsion Array Diametric Drive Diametric Drive Experimental Q-thruster > --- UTILITY ---------- Medium Storage Unit Structural Scanner Enhanced Optical Array Long-range Sensor Array Advanced Signal Interpreter Improved Reaction Control System Improved Utility Shielding Improved Hacking Suite Improved Hacking Suite Improved Hacking Suite Improved Hacking Suite Experimental Hacking Suite System Shield Advanced System Shield > --- WEAPON ----------- Advanced Datajack Force Lance > --- INVENTORY -------- Cooled Field Propulsion Drive Q-thruster Experimental Q-thruster Advanced Sensor Array Stasis Canceller Transmission Jammer ECM Suite Transdimensional Reconstructor Micro-nuke Launcher Micro-nuke Launcher [Rating: 143] Favorites ----------- Power Cold Fusion Reactor Engine Improved Ion Engine Power Core Light Nuclear Core Reactor Cold Fusion Reactor Propulsion Improved Cesium-ion Thruster Treads Light Treads Leg Carbon-fiber Leg Flight Unit Improved Cesium-ion Thruster Utility Cargo Storage Unit Device Cooling System Storage Cargo Storage Unit Processor 0b10 Decoder Chip [Generic] Hackware Hacking Suite Protection Reflective Plating Weapon Advanced Beam Cannon Energy Gun Medium Laser Energy Cannon Advanced Beam Cannon Ballistic Gun Assault Rifle Launcher Long-range Missile Launcher Special Weapon Improved Remote Datajack Impact Weapon Great Maul Slashing Weapon Phasing Sabre Piercing Weapon Force Lance Special Melee Weapon Improved Datajack Build | -11 -10 -10 -9 -9 -9 -9 -6 -6 -6 -6 -5 -5 -5 -5 -5 -5 -4 -4 -4 -4 -3 -3 -2 -2 -1 ------- Run | Yrd Mat Min Mat Sto Rec Scr Fac Low Low Zio Pro Fac Ext Cet Arc Hub Fac Upp Upp Zhi Pro Res Res Tes Acc Slots Evolved 18 | . . . 2 . . . 6 . . . . 2 . . . . 2 . . . . 2 2 . 2 Power 1 | . . . . . . . . . . . . . . . . . . . . . . 1 . . . Propulsion 5 | . . . . . . . 3 . . . . 1 . . . . 1 . . . . . . . . Utility 12 | . . . 2 . . . 3 . . . . 1 . . . . 1 . . . . 1 2 . 2 Weapon . | . . . . . . . . . . . . . . . . . . . . . . . . . . Parts Attached 385 | 7 9 1 30 27 1 3 69 2 . 5 6 32 30 12 27 3 21 . . 7 . 17 44 13 19 Power 31 | 1 1 . 4 3 . . 3 . . . 2 2 2 . 2 . 4 . . . . 2 4 . 1 Engine 13 | 1 1 . 3 . . . . . . . . . 1 . 2 . 2 . . . . 1 2 . . Core 11 | . . . 1 2 . . 3 . . . 2 2 1 . . . . . . . . . . . . Reactor 7 | . . . . 1 . . . . . . . . . . . . 2 . . . . 1 2 . 1 Propulsion 89 | 2 3 . 9 10 . 1 9 . . 1 . 7 14 1 6 1 3 . . 2 . 5 13 2 . Treads 39 | 2 3 . 9 10 . 1 3 . . . . . 9 1 1 . . . . . . . . . . Leg 1 | . . . . . . . . . . . . . 1 . . . . . . . . . . . . Wheel . | . . . . . . . . . . . . . . . . . . . . . . . . . . Hover . | . . . . . . . . . . . . . . . . . . . . . . . . . . Flight 49 | . . . . . . . 6 . . 1 . 7 4 . 5 1 3 . . 2 . 5 13 2 . Utility 159 | 2 3 . 7 6 1 . 34 1 . 2 2 17 8 4 12 . 10 . . 4 . 6 25 5 10 Device 89 | 1 . . 4 1 1 . 18 1 . 1 1 10 5 . 5 . 4 . . 3 . 3 20 5 6 Storage 10 | 1 3 . . . . . 1 . . . . . 1 . 1 . 1 . . . . . 2 . . Processor 7 | . . . . . . . 2 . . . . 3 . . . . 1 . . . . . 1 . . Hackware 15 | . . . . . . . 5 . . . 1 1 . . 5 . . . . . . . 1 . 2 Protection 38 | . . . 3 5 . . 8 . . 1 . 3 2 4 1 . 4 . . 1 . 3 1 . 2 Artifact . | . . . . . . . . . . . . . . . . . . . . . . . . . . Weapon 106 | 2 2 1 10 8 . 2 23 1 . 2 2 6 6 7 7 2 4 . . 1 . 4 2 6 8 Energy Gun 15 | 2 1 1 2 . . . 5 . . . . . . 1 . . . . . . . . . 3 . Energy Cannon 26 | . . . 5 8 . 1 9 . . . . . . 2 . . 1 . . . . . . . . Ballistic Gun 9 | . 1 . . . . . . . . . . . 2 2 3 1 . . . . . . . . . Ballistic Cannon . | . . . . . . . . . . . . . . . . . . . . . . . . . . Launcher 19 | . . . 3 . . . 4 . . . . 2 2 1 . . . . . . . 2 1 . 4 Special Weapon 9 | . . . . . . . 1 . . . 1 3 1 1 2 . . . . . . . . . . Impact Weapon 1 | . . . . . . . . . . 1 . . . . . . . . . . . . . . . Slashing Weapon 7 | . . . . . . . 1 . . . 1 1 1 . 1 1 1 . . . . . . . . Piercing Weapon 5 | . . . . . . . . . . . . . . . . . 1 . . . . 2 . . 2 Special Melee Weapon 15 | . . . . . . 1 3 1 . 1 . . . . 1 . 1 . . 1 . . 1 3 2 Unidentified Prototypes 14 | . . . 1 2 . . 1 . . . . . . . . . . . . 4 . 1 2 3 . Corrupted Parts 8 | . . . . . . . 2 . . . 1 . 5 . . . . . . . . . . . . System Corruption 18 | . . . . . . . 5 . . . 2 . 11 . . . . . . . . . . . . Parts Lost 84 | . 5 1 6 2 . . 22 4 . . . 8 2 4 . 1 4 . . . . 8 2 2 13 Power 11 | . 1 . 1 . . . 3 1 . . . . 1 . . . 1 . . . . 1 . . 2 Propulsion 25 | . 2 . 2 . . . 5 . . . . 4 . . . 1 1 . . . . 4 2 2 2 Utility 36 | . . . 3 1 . . 13 2 . . . 3 1 2 . . 1 . . . . 2 . . 8 Weapon 12 | . 2 1 . 1 . . 1 1 . . . 1 . 2 . . 1 . . . . 1 . . 1 Highest Loss Streak 18 | . 3 1 3 1 . . 18 2 . . . 4 2 4 . 1 3 . . . . 8 2 2 10 To Critical Strikes 1 | . . . . . . . . . . . . . . 1 . . . . . . . . . . . Average Slot Usage (%) 88 | . 90 85 87 85 88 88 85 75 66 78 96 98 97 95 96 93 91 84 84 93 100 92 89 95 94 Engine 3 | . 14 14 8 . . . . . . . . . 4 . 2 5 3 . . . . . 4 4 3 Core 1 | . . . 2 8 . . 1 . . . 4 4 . 5 2 . . . . . . . . . . Reactor 3 | . . . . 1 11 11 4 . . . . . . . . . 1 5 5 5 5 3 3 4 3 Treads 18 | . 27 28 21 21 22 22 21 . . . . . 21 35 15 . . . . . . . . . . Flight 6 | . . . . . . . 5 26 26 30 33 34 11 . 15 28 29 26 26 32 36 31 25 26 23 Device 9 | . 5 . 11 10 11 11 11 10 6 6 6 6 9 5 7 11 8 5 5 4 5 5 12 13 15 Storage 9 | . 13 14 11 11 11 11 6 6 6 6 6 5 5 5 5 5 5 5 5 5 5 4 4 4 4 Processor 1 | . . . . . . . 1 4 . . . 9 6 5 5 5 6 10 10 10 10 9 6 8 8 Hackware 5 | . . . . . . . 7 13 13 13 18 17 17 17 20 23 21 21 21 21 21 19 19 21 23 Protection 8 | . . . 10 10 11 11 11 6 6 11 13 5 5 10 5 . 5 5 5 5 5 6 3 4 3 Energy Gun 2 | . 15 20 2 . . . 1 . . . . . . . . . . . . . . . . . . Energy Cannon 10 | . . . 19 21 22 13 5 . . . . . . 2 . . . . . . . . . . . Ballistic Gun 1 | . 11 7 . . . . . . . . . . 4 2 2 3 . . . . . . . . . Special Melee Weapon 2 | . . . . . . 8 2 . . 2 3 . . . 2 5 4 . . 2 5 3 2 4 3 Peak Build Rating 143 | 9 10 10 24 29 29 34 59 55 38 48 66 81 84 90 94 91 96 83 83 105 105 113 126 131 143 Average Rating 43 | 6 9 9 20 25 28 32 51 44 38 43 58 75 78 82 88 88 88 83 83 96 105 103 113 126 138 On Entrance 61 | . 9 9 10 24 29 29 34 48 38 38 48 66 76 84 90 90 86 83 83 83 105 105 75 126 131 Naked Turns . | . . . . . . . . . . . . . . . . . . . . . . . . . . Heaviest Build 181 | 14 149 149 160 165 166 166 181 23 14 18 28 31 81 89 89 32 40 30 30 31 31 39 44 44 65 Greatest Support 176 | 40 40 40 43 43 43 53 126 24 24 24 32 38 171 171 176 37 41 30 30 42 42 43 45 45 45 Greatest Overweight (x) 9 | . 3 3 7 7 3 3 9 4 . . . 8 1 . . 1 . . . . . . . 1 5 Average Overweight (x) . | . 1 3 3 3 3 3 . . . . . . . . . . . . . . . . . . . Largest Inventory Capacity 30 | 8 30 30 30 30 30 30 30 10 10 10 10 10 20 20 20 10 10 10 10 10 10 10 10 10 10 Average Capacity 23 | 7 22 30 30 30 30 30 24 10 10 10 10 10 16 20 14 10 10 10 10 10 10 10 10 10 10 Most Carried 30 | 2 18 19 30 30 30 30 30 10 9 10 10 10 20 20 20 10 10 9 9 10 9 10 10 10 10 Average Carried 22 | . 12 18 28 29 29 29 22 9 9 9 9 9 13 19 14 9 9 9 9 9 9 8 9 9 9 Final Capacity 30 | 8 30 30 30 30 30 30 10 10 10 10 10 10 20 20 10 10 10 10 10 10 10 10 10 10 10 Final Carried 30 | 2 17 19 30 30 30 30 9 9 9 10 10 9 20 20 10 10 9 9 9 9 9 9 10 9 10 Class Distribution -------------------- 38% | Hauler-Mutant 27% | Commander-Mutant 14% | Hacker-Sprinter 6% | Scavenger-Mutant 3% | Wizard-Ninja 3% | Mutant Dominant Class ---------------- Hauler-Mutant | -10/Materials Hauler-Mutant | -10/Mines Hauler-Mutant | -9/Materials Hauler-Mutant | -9/Storage Commander-Mutant | -9/Recycling Commander-Mutant | -9/Scraptown Commander-Mutant | -6/Factory Hacker-Sprinter | -6/Lower Caves Hacker-Sprinter | -6/Lower Caves Hacker-Sprinter | -6/Zion Hacker-Sprinter | -5/Proximity Caves Hacker-Sprinter | -5/Factory Scavenger-Mutant | -5/Extension Scavenger-Mutant | -5/Cetus Hacker-Sprinter | -5/Archives Hacker-Sprinter | -5/Hub_04(d) Hacker-Sprinter | -4/Factory Hacker-Sprinter | -4/Upper Caves Hacker-Sprinter | -4/Upper Caves Hacker-Sprinter | -4/Zhirov Hacker-Sprinter | -3/Proximity Caves Hacker-Sprinter | -3/Research Wizard-Scout | -2/Research Wizard-Scout | -2/Testing Wizard-Ninja | -1/Access Resources | -11 -10 -10 -9 -9 -9 -9 -6 -6 -6 -6 -5 -5 -5 -5 -5 -5 -4 -4 -4 -4 -3 -3 -2 -2 -1 ----------- Run | Yrd Mat Min Mat Sto Rec Scr Fac Low Low Zio Pro Fac Ext Cet Arc Hub Fac Upp Upp Zhi Pro Res Res Tes Acc Matter Collected 4963 | 270 194 11 326 247 37 36 569 32 140 197 60 367 681 151 427 28 163 . 72 80 . 92 500 126 157 Remotely . | . . . . . . . . . . . . . . . . . . . . . . . . . . Salvage Created 7824 | 49 615 53 2161 1008 209 . 854 . . . 158 196 883 81 336 102 133 . . 185 . 113 614 . 74 Parts 470 | 7 42 4 145 57 9 . 39 . . . 8 19 42 1 26 8 5 . . 1 . 14 32 . 11 Haulers Intercepted 8 | . 2 . 5 . . . . . . . . . 1 . . . . . . . . . . . . Recyclers Shooed 11 | 1 . 1 3 1 . . . . . . . . 3 . . . 1 . . . . . 1 . . Parts Field Recycled . | . . . . . . . . . . . . . . . . . . . . . . . . . . Retrieved Matter . | . . . . . . . . . . . . . . . . . . . . . . . . . . Parts Self-Destructed 15 | . . . . . . . . . 1 . 13 . . . . . . . . 1 . . . . . Prevented 3 | . . . . . . . . . 2 . 1 . . . . . . . . . . . . . . Kills | -11 -10 -10 -9 -9 -9 -9 -6 -6 -6 -6 -5 -5 -5 -5 -5 -5 -4 -4 -4 -4 -3 -3 -2 -2 -1 ------- Run | Yrd Mat Min Mat Sto Rec Scr Fac Low Low Zio Pro Fac Ext Cet Arc Hub Fac Upp Upp Zhi Pro Res Res Tes Acc Combat Hostiles Destroyed 118 | . 19 2 34 16 4 . 12 . . . 2 1 8 2 1 1 . . . . . 4 5 . 7 Melee 7 | . . . . . . . 1 . . . 2 1 2 . . . . . . . . . . . 1 Guns 31 | . 19 2 6 . . . 2 . . . . . . . 1 1 . . . . . . . . . Cannons 46 | . . . 22 16 4 . 2 . . . . . . 2 . . . . . . . . . . . AOE 31 | . . . 6 . . . 4 . . . . . 6 . . . . . . . . 4 5 . 6 Classes Destroyed 19 | 1 6 . 6 . 1 . 3 . . . . 1 . . . . . . . . . 1 . . . Worker 12 | . 1 . 2 . . . 1 . . . . . 2 . . 1 . . . . . . 2 . 3 Builder 9 | . . . 2 . . . 1 . . . . 3 1 . . . 1 . . . . 1 . . . Tunneler 5 | 3 . . . . . . 1 . . . . . . . . . . . . . . . 1 . . Hauler 8 | . 2 . 5 . . . . . . . . . 1 . . . . . . . . . . . . Recycler 14 | . . . 4 3 . . 1 . . . . . 3 . . . 1 . . . . . 2 . . Mechanic 4 | . . . 1 . . . 1 . . . . . 1 . . . . . . . . . 1 . . Operator 14 | . 1 . 4 . . . 1 . . . . . . . 8 . . . . . . . . . . Drone 2 | . . . . . . . . . . . . 1 . . . . . . . . . . . . 1 Watcher 25 | . 3 . 5 2 . . 3 . . . . 4 1 . . 2 . . . . . 1 4 . . Swarmer 36 | . 12 1 7 2 . . . . . . . . 2 . . 1 . . . . . . 5 . 6 Cutter 4 | . . . . . . . . . . . . . . . . . . . . . . 4 . . . Saboteur 1 | . . . . . . . 1 . . . . . . . . . . . . . . . . . . Grunt 37 | . 7 1 16 4 . . 6 . . . . . 3 . . . . . . . . . . . . Brawler 2 | . . . 1 . 1 . . . . . . . . . . . . . . . . . . . . Duelist 3 | . . . 1 . 1 . . . . . . . 1 . . . . . . . . . . . . Protector 2 | . . . . . 1 . 1 . . . . . . . . . . . . . . . . . . Sentry 23 | . . . 9 10 1 . 1 . . . . . 1 . 1 . . . . . . . . . . Hunter 1 | . . . . . . . 1 . . . . . . . . . . . . . . . . . . Programmer 5 | . . . . . . . 2 . . . 2 . 1 . . . . . . . . . . . . Cetus Guard 2 | . . . . . . . . . . . . . . 2 . . . . . . . . . . . Thug 1 | . . . 1 . . . . . . . . . . . . . . . . . . . . . . Best Kill Streak 6 | 2 4 1 5 3 2 . 6 . . . 2 2 6 2 3 4 2 . . . . 5 6 . 6 Combat Bots Only 6 | . 4 1 4 3 2 . 6 . . . 2 1 3 2 1 1 . . . . . 4 5 . 6 Max Kills in Single Turn 6 | 1 2 1 5 1 1 . 2 . . . 1 1 6 1 1 1 1 . . . . 3 2 . 4 Gunslinging 1 | . 1 . . . . . . . . . . . . . . . . . . . . . . . . Exploded 4 | . . . 4 . . . 1 . . . . . 3 . . . . . . . . 3 2 . 4 Melee 1 | . . . . . . . 1 . . . 1 1 1 . . . . . . . . . . . 1 Uniques/NPCs Destroyed . | . . . . . . . . . . . . . . . . . . . . . . . . . . Combat | -11 -10 -10 -9 -9 -9 -9 -6 -6 -6 -6 -5 -5 -5 -5 -5 -5 -4 -4 -4 -4 -3 -3 -2 -2 -1 -------- Run | Yrd Mat Min Mat Sto Rec Scr Fac Low Low Zio Pro Fac Ext Cet Arc Hub Fac Upp Upp Zhi Pro Res Res Tes Acc Hostile Shots Fired 1268 | . 123 11 192 78 . . 351 26 . . 4 58 43 35 . 26 58 . . . 5 97 48 15 98 Missed 470 | . 32 3 59 24 . . 107 15 . . 1 26 19 10 . 14 28 . . . 3 45 26 6 52 Damage Taken 12707 | . 931 116 1519 610 . . 3382 125 . . 61 558 432 620 . 253 940 . . . 59 1366 457 164 1114 Core 2393 | . 122 10 184 82 . . 576 26 . . 18 116 88 68 . 35 257 . . . . 446 43 21 301 Absorbed by Shields 406 | . . . . . . . 139 . . . . 38 137 92 . . . . . . . . . . . Redirected to Shielding 594 | . . . . . . . 49 5 . . 6 35 17 . . . 16 . . . 22 169 29 18 228 Ignored by Resistances 286 | . . . 145 54 . . 87 . . . . . . . . . . . . . . . . . . Regen/Repaired (Parts) 737 | . . . 87 354 . . 21 . . . . 96 . . . . 30 . . . . . 149 . . Core Remaining (%) 64 | 100 . 47 . . . 33 . . . . 27 . . . . 69 . . . . 77 65 . 95 . Volleys Fired 406 | 7 65 7 112 43 8 . 55 . . . . 15 42 19 10 12 . . . . . 4 3 . 4 Largest 2 | 2 2 2 2 2 2 . 2 . . . . 1 2 2 1 1 . . . . . 1 1 . 2 Hottest 175 | 90 90 90 136 136 136 . 175 . . . . 43 76 165 35 35 . . . . . 49 49 . 98 Shots Fired 678 | 14 123 14 214 84 16 . 97 . . . . 15 43 21 10 12 . . . . . 4 3 . 8 Gun 304 | 14 123 14 50 . . . 40 . . . . . 33 14 4 12 . . . . . . . . . Cannon 309 | . . . 159 84 16 . 46 . . . . . . 4 . . . . . . . . . . . Launcher 46 | . . . 5 . . . 11 . . . . 4 9 2 . . . . . . . 4 3 . 8 Special 19 | . . . . . . . . . . . . 11 1 1 6 . . . . . . . . . . Kinetic 106 | . 43 2 . . . . . . . . . . 33 12 4 12 . . . . . . . . . Thermal 494 | 14 80 12 209 84 16 . 73 . . . . . . 6 . . . . . . . . . . . Explosive 43 | . . . 5 . . . 8 . . . . 4 9 2 . . . . . . . 4 3 . 8 Electromagnetic 16 | . . . . . . . 16 . . . . . . . . . . . . . . . . . . Robot Hit Streak 13 | 3 8 5 11 9 13 . 10 . . . . 5 9 11 9 12 . . . . . 1 1 . 4 Robot Miss Streak 5 | 2 5 3 5 5 2 . 3 . . . . 1 2 2 1 4 . . . . . 1 1 . . Penetration Max 1 | . . . . . . . . . . . . . 1 . 1 . . . . . . . . . . Secondary Targets 7 | . 4 1 2 . . . . . . . . . . . . . . . . . . . . . . Max Gunslinging Chain 1 | . 1 1 1 . . . . . . . . . . . . . . . . . . . . . . Shots Hit Robots 509 | 7 78 8 133 54 8 5 71 . . . 5 19 42 12 21 7 4 . . 4 . 6 16 1 8 Core Hits 309 | 3 38 3 74 23 6 . 53 . . . 2 5 33 5 8 4 1 . . 2 . 8 19 . 22 Critical Kills 2 | . 1 . . . . . . . . . . . . . 1 . . . . . . . . . . Critical Parts Destroyed 1 | . . . . . . . . . . . . . 1 . . . . . . . . . . . . Critical Strikes 17 | . 5 . 2 . . . 3 . . . . . 3 2 1 . . . . . . 1 . . . Burn 11 | . 4 . 2 . . . 3 . . . . . . 2 . . . . . . . . . . . Destroy 4 | . 1 . . . . . . . . . . . 2 . 1 . . . . . . . . . . Sever 1 | . . . . . . . . . . . . . 1 . . . . . . . . . . . . Impale 1 | . . . . . . . . . . . . . . . . . . . . . . 1 . . . Melee Attacks 212 | . . . . . . 5 29 1 . 1 5 43 17 . 12 5 14 . . 4 . 15 37 8 16 Impact . | . . . . . . . . . . . . . . . . . . . . . . . . . . Slashing 119 | . . . . . . . 24 1 . 1 5 43 17 . 10 4 14 . . . . . . . . Piercing 78 | . . . . . . . . . . . . . . . . . . . . 4 . 15 36 7 16 Sneak Attacks 48 | . . . . . . 5 9 . . . 1 4 3 . 12 . 3 . . . . 2 6 1 2 Combat Hostiles 3 | . . . . . . . . . . . 1 . 1 . . . . . . . . . . . 1 Follow-up Attacks . | . . . . . . . . . . . . . . . . . . . . . . . . . . Damage Inflicted 18836 | 82 1022 105 2929 1269 164 . 3164 . . . 341 703 2463 482 1147 207 305 . . 403 . 760 1854 . 1436 Guns 3369 | 82 1018 105 492 . . . 623 . . . . . 602 140 100 207 . . . . . . . . . Cannons 4520 | . . . 2079 1228 160 . 924 . . . . . . 129 . . . . . . . . . . . Explosions 5010 | . . . 319 . . . 1191 . . . . . 1093 213 . . . . . . . 418 651 . 1125 Melee 5838 | . . . . . . . 426 . . . 341 703 757 . 1047 . 305 . . 403 . 342 1203 . 311 Ramming 99 | . 4 . 39 41 4 . . . . . . . 11 . . . . . . . . . . . . Kinetic 1357 | . 349 . . . . . . . . . . . 602 99 100 207 . . . . . . . . . Thermal 6336 | 82 669 105 2571 1228 160 . 1351 . . . . . . 170 . . . . . . . . . . . Explosive 4733 | . . . 319 . . . 914 . . . . . 1093 213 . . . . . . . 418 651 . 1125 Electromagnetic 473 | . . . . . . . 473 . . . . . . . . . . . . . . . . . . Impact . | . . . . . . . . . . . . . . . . . . . . . . . . . . Slashing 3579 | . . . . . . . 426 . . . 341 703 757 . 1047 . 305 . . . . . . . . Piercing 2259 | . . . . . . . . . . . . . . . . . . . . 403 . 342 1203 . 311 Highest Corruption 13 | . . . . 1 1 . 7 7 4 4 2 . 13 13 13 . 1 1 1 1 1 2 1 1 8 Average Corruption 3 | . . . . 1 1 . 5 4 4 4 2 . 8 13 9 . 1 1 1 1 1 1 1 1 1 Corruption Purged 16 | . . . . . . . . 3 . . . . . . 13 . . . . . . . . . . Corruption Blocked . | . . . . . . . . . . . . . . . . . . . . . . . . . . Effects 172 | . . . . 3 17 . 62 6 1 1 1 . 36 17 16 . . . . . 1 1 7 2 1 Message Errors 50 | . . . . 1 3 . 18 2 1 . . . 8 8 6 . . . . . 1 . 2 . . Matter Fused 46 | . . . . . 5 . 21 2 . 1 . . 10 2 4 . . . . . . . 1 . . Heat Flow Errors 22 | . . . . . 1 . 7 1 . . . . 6 2 4 . . . . . . . 1 . . Energy Discharges 16 | . . . . 1 2 . 3 1 . . 1 . 3 2 . . . . . . . . 2 1 . Parts Rejected 1 | . . . . . . . . . . . . . . . . . . . . . . . . . 1 Parts Fused 2 | . . . . . . . . . . . . . 1 1 . . . . . . . . . . . Data Loss (minor) 19 | . . . . 1 5 . 7 . . . . . 1 1 1 . . . . . . 1 1 1 . Data Loss (major) 5 | . . . . . . . 2 . . . . . 2 . 1 . . . . . . . . . . Misfires 2 | . . . . . . . 1 . . . . . 1 . . . . . . . . . . . . Alerts 4 | . . . . . 1 . . . . . . . 3 . . . . . . . . . . . . Weapon Failures 5 | . . . . . . . 3 . . . . . 1 1 . . . . . . . . . . . Overload Shots . | . . . . . . . . . . . . . . . . . . . . . . . . . . Overflow Damage 1481 | . . . 45 . . . 152 . . . 133 189 81 . 215 . 69 . . 226 . 84 280 . 7 Projectiles 75 | . . . 45 . . . 30 . . . . . . . . . . . . . . . . . . Explosions 152 | . . . . . . . 51 . . . . 6 28 . . . . . . . . 23 42 . 2 Melee 1254 | . . . . . . . 71 . . . 133 183 53 . 215 . 69 . . 226 . 61 238 . 5 Knockbacks . | . . . . . . . . . . . . . . . . . . . . . . . . . . Impact . | . . . . . . . . . . . . . . . . . . . . . . . . . . Kinetic . | . . . . . . . . . . . . . . . . . . . . . . . . . . Secondary . | . . . . . . . . . . . . . . . . . . . . . . . . . . Self-Inflicted Damage 349 | . . . 9 . . . 125 . . . . 80 . . . . . . . . . 135 . . . Shots 10 | . . . 1 . . . 5 . . . . 2 . . . . . . . . . 2 . . . Rammed 25 | . 3 . 13 6 1 . . . . . . . 2 . . . . . . . . . . . . Targets Rammed 26 | . 3 . 13 7 1 . . . . . . . 2 . . . . . . . . . . . . Kicked . | . . . . . . . . . . . . . . . . . . . . . . . . . . Crushed 1 | . . . . 1 . . . . . . . . . . . . . . . . . . . . . Highest Temperature 336 | 90 316 156 336 333 156 . 267 188 . . 7 200 263 213 227 10 219 1 1 1 7 5 232 6 3 Average Temperature 66 | 40 82 58 77 91 29 . 91 85 . . 3 33 81 97 101 3 72 1 1 1 7 5 74 4 3 Received Heat Transfer 2396 | . 366 36 654 240 . . 719 . . . . 18 85 40 . 18 51 . . . 9 88 18 . 54 Effects 8 | . 1 . 1 1 . . 3 . . . . . . . . . 1 . . . . . 1 . . Energy Bleed 2 | . . . 1 1 . . . . . . . . . . . . . . . . . . . . . Interference 5 | . . . . . . . 3 . . . . . . . . . 1 . . . . . 1 . . Short Circuit 1 | . 1 . . . . . . . . . . . . . . . . . . . . . . . . Siege Activations . | . . . . . . . . . . . . . . . . . . . . . . . . . . Robots Corrupted 1 | . . . . . . . 1 . . . . . . . . . . . . . . . . . . Combat Hostiles 1 | . . . . . . . 1 . . . . . . . . . . . . . . . . . . Parts Fried 4 | . . . . . . . 3 . . . . . . 1 . . . . . . . . . . . Impact Corruptions . | . . . . . . . . . . . . . . . . . . . . . . . . . . Robots Melted 2 | . . . . . . . 2 . . . . . . . . . . . . . . . . . . Combat Hostiles 2 | . . . . . . . 2 . . . . . . . . . . . . . . . . . . Parts Melted 37 | . 4 3 10 9 1 . 10 . . . . . . . . . . . . . . . . . . Heat Transferred 13457 | 235 2149 285 5149 2072 301 . 2844 . . . . . . 422 . . . . . . . . . . . Parts Sabotaged 3 | . . . . . . . 3 . . . . . . . . . . . . . . . . . . Parts Stolen . | . . . . . . . . . . . . . . . . . . . . . . . . . . Parts Stripped . | . . . . . . . . . . . . . . . . . . . . . . . . . . Power Chain Reactions 1 | . . . . . . . 1 . . . . . . . . . . . . . . . . . . Alert | -11 -10 -10 -9 -9 -9 -9 -6 -6 -6 -6 -5 -5 -5 -5 -5 -5 -4 -4 -4 -4 -3 -3 -2 -2 -1 ------- Run | Yrd Mat Min Mat Sto Rec Scr Fac Low Low Zio Pro Fac Ext Cet Arc Hub Fac Upp Upp Zhi Pro Res Res Tes Acc Peak Influence 1288 | 15 160 202 567 281 240 . 416 . . . . 760 1288 761 498 710 444 . . . . 261 533 255 546 Initial 720 | . 9 22 20 169 71 . . . . . . 130 326 720 222 51 347 . . . . . 121 209 152 Average 238 | 5 76 73 294 161 36 . 76 . . . . 592 712 737 311 337 319 . . . . 102 313 166 244 Maximum Alert Level 4 | . . 1 2 1 1 . 2 . . . . 3 4 3 2 3 2 . . . . 1 2 1 2 Low Security (%) 55 | 100 100 87 35 69 98 . 85 . . . . 2 . . 29 33 15 . . . . 78 16 80 31 Level 1 22 | . . 12 32 30 1 . 13 . . . . 1 4 . 39 13 59 . . . . 21 66 19 45 Level 2 19 | . . . 31 . . . . . . . . 89 68 6 31 48 24 . . . . . 17 . 22 Level 3 2 | . . . . . . . . . . . . 6 13 93 . 4 . . . . . . . . . Level 4 . | . . . . . . . . . . . . . 12 . . . . . . . . . . . . Level 5 . | . . . . . . . . . . . . . . . . . . . . . . . . . . High Security . | . . . . . . . . . . . . . . . . . . . . . . . . . . Max Security . | . . . . . . . . . . . . . . . . . . . . . . . . . . Squads Dispatched 52 | . 2 . 6 . . . 12 . . . . 6 4 . . 2 3 . . . . 7 5 . 5 Investigation 23 | . . . 1 . . . 4 . . . . 6 1 . . 2 2 . . . . 2 3 . 2 Extermination 6 | . . . . . . . 2 . . . . . . . . . . . . . . . 2 . 2 Reinforcement 20 | . 2 . 5 . . . 4 . . . . . 2 . . . 1 . . . . 5 . . 1 Assault 1 | . . . . . . . . . . . . . 1 . . . . . . . . . . . . Garrison 2 | . . . . . . . 2 . . . . . . . . . . . . . . . . . . Intercept . | . . . . . . . . . . . . . . . . . . . . . . . . . . Searches Triggered 1 | . . . . . . . 1 . . . . . . . . . . . . . . . . . . Construction Impeded 4 | . . . 1 . . . 1 . . . . . 2 . . . . . . . . . . . . Haulers Reinforced 1 | . . . . . . . 1 . . . . . . . . . . . . . . . . . . Active Scanning Responses . | . . . . . . . . . . . . . . . . . . . . . . . . . . Cargo Convoy Interrupts 1 | . . . . . . . 1 . . . . . . . . . . . . . . . . . . Stealth | -11 -10 -10 -9 -9 -9 -9 -6 -6 -6 -6 -5 -5 -5 -5 -5 -5 -4 -4 -4 -4 -3 -3 -2 -2 -1 --------- Run | Yrd Mat Min Mat Sto Rec Scr Fac Low Low Zio Pro Fac Ext Cet Arc Hub Fac Upp Upp Zhi Pro Res Res Tes Acc Distress Signals 21 | . 2 . 4 3 . . . . . . . 2 1 1 . 2 . . . . . 2 2 . 2 Communications Jammed 6 | . . . . . . . . . . . . . . . . . . . . . . . 4 . 2 Distress Signals 4 | . . . . . . . . . . . . . . . . . . . . . . . 4 . . Times Spotted 423 | . 26 4 65 22 6 . 59 8 . . 4 33 28 4 8 25 22 . . . 4 24 35 5 41 Peak Tracking Total 18 | . 5 2 7 4 2 . 10 5 . . 1 12 6 5 1 11 8 . . . 10 13 11 4 18 Tactical Retreats 46 | . 1 . 1 1 . . 12 3 . . 1 8 . . . 2 3 . . . . 2 6 . 6 Traps | -11 -10 -10 -9 -9 -9 -9 -6 -6 -6 -6 -5 -5 -5 -5 -5 -5 -4 -4 -4 -4 -3 -3 -2 -2 -1 ------- Run | Yrd Mat Min Mat Sto Rec Scr Fac Low Low Zio Pro Fac Ext Cet Arc Hub Fac Upp Upp Zhi Pro Res Res Tes Acc Traps Triggered 24 | . . . 1 6 . . 1 . . . . 6 6 . . . 2 . . . . 1 1 . . Indirectly . | . . . . . . . . . . . . . . . . . . . . . . . . . . Trap Hack Attempts 2 | . . . . . . . . . . . . . . . . . . . . . . . 2 . . Triggered . | . . . . . . . . . . . . . . . . . . . . . . . . . . Disarmed . | . . . . . . . . . . . . . . . . . . . . . . . . . . Reprogrammed 11 | . . . . . . . . . . . . . . . . . . . . . . . 11 . . Reused 2 | . . . . . . . . . . . . . . . . . . . . . . . 2 . . Traps Extracted . | . . . . . . . . . . . . . . . . . . . . . . . . . . Installed . | . . . . . . . . . . . . . . . . . . . . . . . . . . Triggered 4 | . . . . . . . . 1 1 . . . . . . . . . . . . . 2 . . Machines | -11 -10 -10 -9 -9 -9 -9 -6 -6 -6 -6 -5 -5 -5 -5 -5 -5 -4 -4 -4 -4 -3 -3 -2 -2 -1 ---------- Run | Yrd Mat Min Mat Sto Rec Scr Fac Low Low Zio Pro Fac Ext Cet Arc Hub Fac Upp Upp Zhi Pro Res Res Tes Acc Machines Disabled 14 | . . . 1 . . . 3 . . . . . 1 1 1 4 . . . . . . . 3 . Max in Single Turn 2 | . . . 1 . . . 2 . . . . . . 1 1 2 . . . . . . . 1 . Garrison Access 7 | . . . . . . . 2 . . . . 2 . . . 1 . . . . . . 2 . . Network Hub 1 | . . . . . . . . . . . . . . . . 1 . . . . . . . . . Machines Repaired . | . . . . . . . . . . . . . . . . . . . . . . . . . . Machines Dismantled . | . . . . . . . . . . . . . . . . . . . . . . . . . . Machines Sabotaged 1 | . . . . . . . . . . . . . . . . 1 . . . . . . . . . Overloaded Fab Kills . | . . . . . . . . . . . . . . . . . . . . . . . . . . Hacking | -11 -10 -10 -9 -9 -9 -9 -6 -6 -6 -6 -5 -5 -5 -5 -5 -5 -4 -4 -4 -4 -3 -3 -2 -2 -1 --------- Run | Yrd Mat Min Mat Sto Rec Scr Fac Low Low Zio Pro Fac Ext Cet Arc Hub Fac Upp Upp Zhi Pro Res Res Tes Acc Machines Accessed 142 | . 8 2 13 12 13 3 21 . . 1 . 15 6 3 1 5 8 . . 4 . 4 17 4 2 Terminals 78 | . 6 2 7 9 6 . 10 . . . . 4 6 3 . 4 4 . . . . 1 11 4 1 Fabricators 13 | . . . . . . . 4 . . . . 3 . . . . 2 . . . . 1 3 . . Repair Stations 11 | . . . 2 2 . . 1 . . . . 3 . . . . 2 . . . . . 1 . . Recycling Units 18 | . 2 . 2 1 7 . 3 . . . . 1 . . . . . . . . . 1 . . 1 Scanalyzers 5 | . . . 2 . . . 1 . . . . 1 . . . . . . . . . 1 . . . Garrison Access 8 | . . . . . . . 2 . . . . 3 . . . 1 . . . . . . 2 . . Total Hacks 530 | . 22 3 44 44 42 9 64 . . 6 . 39 13 7 25 16 40 . . 17 . 18 85 27 9 Successful 330 | . 12 1 25 25 26 9 37 . . 6 . 17 8 5 25 7 22 . . 17 . 11 49 22 6 Failed 197 | . 9 2 18 19 16 . 27 . . . . 22 5 2 . 9 17 . . . . 7 36 5 3 Catastrophic 28 | . 1 . 3 1 1 . 5 . . . . 5 1 1 . 3 1 . . . . . 6 . . Database Lockouts 3 | . 1 . 1 . . . . . . . . . . . . . 1 . . . . . . . . Manual 208 | . 14 1 18 19 17 . 18 . . . . 14 3 2 . 8 16 . . . . 3 53 18 4 Terminals 299 | . 17 3 25 30 25 . 21 . . . . 10 13 7 . 14 26 . . . . 6 69 27 6 Fabricators 46 | . . . . . . . 15 . . . . 8 . . . . 9 . . . . 6 8 . . Repair Stations 33 | . . . 6 9 . . 2 . . . . 6 . . . . 5 . . . . . 5 . . Recycling Units 48 | . 5 . 4 5 17 . 6 . . . . 5 . . . . . . . . . 3 . . 3 Scanalyzers 27 | . . . 9 . . . 14 . . . . 1 . . . . . . . . . 3 . . . Garrison Access 20 | . . . . . . . 6 . . . . 9 . . . 2 . . . . . . 3 . . Terminal Hacks 174 | . 4 1 11 12 10 9 5 . . 6 . 2 7 5 25 4 10 . . 17 . 2 27 15 2 Record 43 | . . . . . . 8 . . . . . . . 5 25 . . . . 5 . . . . . Part Schematic 25 | . . . 1 3 3 . . . . 6 . . . . . 2 1 . . 4 . . 3 2 . Robot Schematic 3 | . . . 1 . 1 . . . . . . . . . . . . . . . . . 1 . . Robot Analysis 18 | . 1 . 3 2 . . 2 . . . . . 1 . . . 1 . . 4 . . 3 1 . Prototype ID Bank 18 | . 1 . 2 4 4 . . . . . . . . . . . . . . 4 . . 2 1 . Open Door 4 | . . . . 1 . . . . . . . . 3 . . . . . . . . . . . . Level Access Points 2 | . . . . . . . . . . . . . . . . . . . . . . . . 1 1 Branch Access Points 5 | . . . . . . . 1 . . . . . . . . 1 1 . . . . . 1 1 . Machine Index 2 | . . . . . . . . . . . . . . . . . . . . . . . 1 1 . Terminal Index 8 | . . . . . . . 1 . . . . 1 1 . . 1 1 . . . . 1 1 . 1 Fabricator Index 1 | . . . . . . . . . . . . . . . . . 1 . . . . . . . . Recycling Unit Index 1 | . . . . . . . . . . . . . 1 . . . . . . . . . . . . Alert Level 1 | . . . 1 . . . . . . . . . . . . . . . . . . . . . . Unreport Threat 5 | . . . 1 . . . . . . . . . . . . . 2 . . . . . 1 1 . Locate Traps 10 | . 1 . 1 2 . . . . . . . 1 1 . . . 1 . . . . . 3 . . Reprogram Traps 3 | . . . . . . . . . . . . . . . . . . . . . . . 2 1 . Patrol Status 1 | . . . . . . . . . . . . . . . . . . . . . . . 1 . . Recall Investigation 5 | . . . . . . . . . . . . . . . . . 2 . . . . . 3 . . Recall Extermination 1 | . . . . . . . . . . . . . . . . . . . . . . . 1 . . Hauler Manifests 6 | . 1 . 1 . 1 . 1 . . . . . . . . . . . . . . 1 . 1 . Registered Prototypes 2 | . . . . . . . . . . . . . . . . . . . . . . . 1 1 . Zone Layout 9 | . . 1 . . 1 . . . . . . . . . . . . . . . . . 3 4 . Derelict Proto ID Bank 1 | . . . . . . 1 . . . . . . . . . . . . . . . . . . . Fabricator Hacks 27 | . . . . . . . 9 . . . . 4 . . . . 5 . . . . 2 7 . . Network Status 4 | . . . . . . . 1 . . . . . . . . . 1 . . . . 1 1 . . Load Schematic 12 | . . . . . . . 4 . . . . 2 . . . . 2 . . . . 1 3 . . Build 11 | . . . . . . . 4 . . . . 2 . . . . 2 . . . . . 3 . . Repair Station Hacks 26 | . . . 4 8 . . 2 . . . . 4 . . . . 4 . . . . . 4 . . Scan Component 13 | . . . 2 4 . . 1 . . . . 2 . . . . 2 . . . . . 2 . . Repair 13 | . . . 2 4 . . 1 . . . . 2 . . . . 2 . . . . . 2 . . Recycling Unit Hacks 15 | . 1 . 2 1 6 . 2 . . . . 1 . . . . . . . . . 1 . . 1 Retrieve Components 15 | . 1 . 2 1 6 . 2 . . . . 1 . . . . . . . . . 1 . . 1 Scanalyzer 22 | . . . 5 . . . 14 . . . . . . . . . . . . . . 3 . . . Insert Component 11 | . . . 2 . . . 7 . . . . . . . . . . . . . . 2 . . . Analyze 11 | . . . 3 . . . 7 . . . . . . . . . . . . . . 1 . . . Garrison Access Hacks 6 | . . . . . . . 2 . . . . 1 . . . 1 . . . . . . 2 . . Seal Access 6 | . . . . . . . 2 . . . . 1 . . . 1 . . . . . . 2 . . Unauthorized Hacks 60 | . 7 . 3 4 10 . 3 . . . . 5 1 . . 2 3 . . . . 3 9 7 3 Terminals 42 | . 7 . 2 3 2 . 2 . . . . 1 1 . . 2 3 . . . . 2 9 7 1 Track 6 | . . . . . . . . . . . . . . . . . 1 . . . . 1 2 2 . Assimilate 4 | . . . . . . . . . . . . . . . . . 1 . . . . . 1 1 1 Botnet 22 | . 2 . 2 3 2 . 2 . . . . 1 1 . . . 1 . . . . 1 4 3 . Disrupt 3 | . . . . . . . . . . . . . . . . . . . . . . . 2 1 . Skim 5 | . 5 . . . . . . . . . . . . . . . . . . . . . . . . Sabotage 2 | . . . . . . . . . . . . . . . . 2 . . . . . . . . . Fabricators . | . . . . . . . . . . . . . . . . . . . . . . . . . . Repair Stations 3 | . . . . . . . 1 . . . . . . . . . . . . . . 1 . . 1 Recycling Units 14 | . . . 1 1 8 . . . . . . 3 . . . . . . . . . . . . 1 Reject 1 | . . . . . . . . . . . . 1 . . . . . . . . . . . . . Recyclers 5 | . . . 1 1 1 . . . . . . 1 . . . . . . . . . . . . 1 Mask 1 | . . . . . . . . . . . . 1 . . . . . . . . . . . . . Tunnel 7 | . . . . . 7 . . . . . . . . . . . . . . . . . . . . Scrapoids 3 | . . . . . . . 1 . . . . . . . . . . . . . . 1 . . 1 Scanalyzers . | . . . . . . . . . . . . . . . . . . . . . . . . . . Garrison Access 1 | . . . . . . . . . . . . 1 . . . . . . . . . . . . . Jam 1 | . . . . . . . . . . . . 1 . . . . . . . . . . . . . Data Cores Recovered . | . . . . . . . . . . . . . . . . . . . . . . . . . . Used . | . . . . . . . . . . . . . . . . . . . . . . . . . . Hacking Detections 112 | . 8 2 10 11 9 . 20 . . . . 13 3 2 . 4 6 . . . . 4 15 4 1 Full Trace Events 18 | . . . . . 2 . 3 . . . . 5 1 . . . 2 . . . . 1 3 . 1 Feedback Events . | . . . . . . . . . . . . . . . . . . . . . . . . . . Feedback Blocked . | . . . . . . . . . . . . . . . . . . . . . . . . . . Robot Schematics Acquired 7 | . . . 1 . 1 . . . . 4 . . . . . . . . . . . . 1 . . Robots Built 5 | . . . . . . . 1 . . . . 4 . . . . . . . . . . . . . Authchips 1 | . . . . . . . 1 . . . . . . . . . . . . . . . . . . Time 232 | . . . . . . . 40 . . . . 192 . . . . . . . . . . . . . Total Robot Build Rating 17 | . . . . . . . 1 . . . . 16 . . . . . . . . . . . . . Part Schematics Acquired 44 | . . . 2 3 3 . 6 . . 18 . . . . . 2 1 . . 4 . 1 2 2 . Parts Built 7 | . . . . . . . 3 . . . . . . . . . 2 . . . . . 2 . . Authchips 1 | . . . . . . . 1 . . . . . . . . . . . . . . . . . . Time 564 | . . . . . . . 201 . . . . . . . . . 120 . . . . . 243 . . Total Part Build Rating 37 | . . . . . . . 12 . . . . . . . . . 9 . . . . . 16 . . Parts Repaired 12 | . . . 2 4 . . 1 . . . . 2 . . . . 1 . . . . . 2 . . Time 550 | . . . 100 159 . . 108 . . . . 60 . . . . 91 . . . . . 32 . . Parts Recycled . | . . . . . . . . . . . . . . . . . . . . . . . . . . Recycled Matter . | . . . . . . . . . . . . . . . . . . . . . . . . . . Retrieved Matter . | . . . . . . . . . . . . . . . . . . . . . . . . . . Retrieved Components 63 | . 10 . 20 3 16 . 12 . . . . 2 . . . . . . . . . . . . . Parts Scanalyzed 8 | . . . 1 . . . 6 . . . . . . . . . . . . . . 1 . . . Part Schematics Acquired 8 | . . . 1 . . . 6 . . . . . . . . . . . . . . 1 . . . Parts Damaged 1 | . . . 1 . . . . . . . . . . . . . . . . . . . . . . Bothacking | -11 -10 -10 -9 -9 -9 -9 -6 -6 -6 -6 -5 -5 -5 -5 -5 -5 -4 -4 -4 -4 -3 -3 -2 -2 -1 ------------ Run | Yrd Mat Min Mat Sto Rec Scr Fac Low Low Zio Pro Fac Ext Cet Arc Hub Fac Upp Upp Zhi Pro Res Res Tes Acc Used RIF Installer . | . . . . . . . . . . . . . . . . . . . . . . . . . . Robots Hacked 23 | . . . . . . 5 4 . . . . 6 . 1 5 1 . . . . . . . 1 . Non-combat 16 | . . . . . . 3 4 . . . . 6 . . 2 1 . . . . . . . . . Combat 7 | . . . . . . 2 . . . . . . . 1 3 . . . . . . . . 1 . Robot Hacks Applied 28 | . . . . . . 5 5 . . . . 7 . 1 8 1 . . . . . . . 1 . parse_system 14 | . . . . . . 5 2 . . . . 1 . 1 4 . . . . . . . . 1 . no_distress 1 | . . . . . . . . . . . . 1 . . . . . . . . . . . . . find_chute 2 | . . . . . . . 2 . . . . . . . . . . . . . . . . . . find_fabricator 2 | . . . . . . . . . . . . 2 . . . . . . . . . . . . . find_dsf 1 | . . . . . . . . . . . . 1 . . . . . . . . . . . . . find_recycling 3 | . . . . . . . 1 . . . . 2 . . . . . . . . . . . . . check_alert 5 | . . . . . . . . . . . . . . . 4 1 . . . . . . . . . Relay Couplers Released . | . . . . . . . . . . . . . . . . . . . . . . . . . . Fabnet Peak Effective % . | . . . . . . . . . . . . . . . . . . . . . . . . . . Robots Rewired 18 | . . . . . 13 . . . . . . . 5 . . . . . . . . . . . . Allies Hacked 5 | . . . . . . . 1 . . . 1 . 1 . . . . . . . . 1 . . 1 Hacks Repelled 1 | . . . . . . . . . . . 1 . . . . . . . . . . . . . . Allies | -11 -10 -10 -9 -9 -9 -9 -6 -6 -6 -6 -5 -5 -5 -5 -5 -5 -4 -4 -4 -4 -3 -3 -2 -2 -1 -------- Run | Yrd Mat Min Mat Sto Rec Scr Fac Low Low Zio Pro Fac Ext Cet Arc Hub Fac Upp Upp Zhi Pro Res Res Tes Acc Total Allies 64 | . . 2 . . 13 . 6 . . 11 . 4 9 7 . . 1 . . . . 5 . 1 5 Largest Group 13 | . . 2 2 . 13 12 13 . . 11 11 8 9 10 9 9 1 . . . . 5 . 1 5 Highest-Rated Group 901 | . . 42 42 . 165 144 158 . . 281 281 221 446 901 742 735 45 . . . . 320 . 45 320 Highest-Rated Ally 159 | . . 31 31 . 27 27 28 . . 51 51 47 159 159 96 96 45 . . . . 64 . 45 64 Total Orders 14 | . . . . . . 2 7 . . . . 1 2 . . 2 . . . . . . . . . STAY 3 | . . . . . . 1 1 . . . . . 1 . . . . . . . . . . . . FOLLOW 4 | . . . . . . 1 1 . . . . . 1 . . 1 . . . . . . . . . AID 7 | . . . . . . . 5 . . . . 1 . . . 1 . . . . . . . . . Ally Attacks 420 | . . 20 9 . 20 . 67 . . . 14 73 68 26 28 41 . . . . . 14 . . 40 Total Damage 10544 | . . 335 84 . 295 . 927 . . . 427 1415 2305 903 1036 1454 . . . . . 531 . . 832 Kills 86 | . . 6 1 . 3 . 10 . . . 3 13 28 3 3 6 . . . . . 3 . . 7 Allies Corrupted 3 | . . . . . . . . . . . . 1 . . . . . . . . . 2 . . . Allies Melted . | . . . . . . . . . . . . . . . . . . . . . . . . . . Intel | -11 -10 -10 -9 -9 -9 -9 -6 -6 -6 -6 -5 -5 -5 -5 -5 -5 -4 -4 -4 -4 -3 -3 -2 -2 -1 ------- Run | Yrd Mat Min Mat Sto Rec Scr Fac Low Low Zio Pro Fac Ext Cet Arc Hub Fac Upp Upp Zhi Pro Res Res Tes Acc Robot Analysis Total 18 | . 1 . 3 2 . . 2 . . . . . 1 . . . 1 . . 4 . . 3 1 . Derelict Logs Recovered 8 | . . 1 . . . . . 1 1 1 1 . . . . . . 1 2 . . . . . . Drone Launches . | . . . . . . . . . . . . . . . . . . . . . . . . . . Drone Recoveries . | . . . . . . . . . . . . . . . . . . . . . . . . . . Decoded 0b10 Intel 85 | . . . . . . . . . . . . 31 22 4 3 4 12 . . . . 8 1 . . Traps 19 | . . . . . . . . . . . . 11 6 . . . 2 . . . . . . . . Emergency Access 6 | . . . . . . . . . . . . . 3 . . . 1 . . . . 2 . . . Items 39 | . . . . . . . . . . . . 17 8 1 . 2 6 . . . . 4 1 . . Machines 10 | . . . . . . . . . . . . 2 3 3 1 . 1 . . . . . . . . Patrols 3 | . . . . . . . . . . . . . . . . . 1 . . . . 2 . . . Guards 4 | . . . . . . . . . . . . 1 . . . 2 1 . . . . . . . . Exits 4 | . . . . . . . . . . . . . 2 . 2 . . . . . . . . . . Exploration | -11 -10 -10 -9 -9 -9 -9 -6 -6 -6 -6 -5 -5 -5 -5 -5 -5 -4 -4 -4 -4 -3 -3 -2 -2 -1 ------------- Run | Yrd Mat Min Mat Sto Rec Scr Fac Low Low Zio Pro Fac Ext Cet Arc Hub Fac Upp Upp Zhi Pro Res Res Tes Acc Turns Passed 30211 | 129 2165 876 5762 2785 2720 5169 2267 237 126 570 282 1075 1195 426 1127 145 445 71 98 64 69 263 1171 218 756 Spaces Moved 19795 | 62 723 209 1269 596 644 1283 2133 410 314 1105 262 2140 898 203 442 384 1196 284 390 181 330 665 2363 452 857 Core 6 | 2 . . . . . . 1 2 . . . . . . . . . . . . . . . . 1 Treads 6214 | 60 723 209 1269 596 644 1283 505 . . . . . 473 203 249 . . . . . . . . . . Legs . | . . . . . . . . . . . . . . . . . . . . . . . . . . Wheels . | . . . . . . . . . . . . . . . . . . . . . . . . . . Hover . | . . . . . . . . . . . . . . . . . . . . . . . . . . Flight 13575 | . . . . . . . 1627 408 314 1105 262 2140 425 . 193 384 1196 284 390 181 330 665 2363 452 856 Fastest Speed 15 | 50 160 400 400 400 400 400 26 26 26 26 27 21 24 160 24 24 20 24 24 17 17 17 16 15 15 Average Speed 120 | 156 259 400 401 404 400 400 80 27 27 28 27 24 95 160 100 24 21 24 24 19 17 18 20 19 17 Slowest Speed 720 | 160 400 400 720 720 400 400 500 250 29 29 29 27 160 160 160 95 24 24 24 24 17 27 26 90 300 Overloaded Moves . | . . . . . . . . . . . . . . . . . . . . . . . . . . Propulsion Burnouts . | . . . . . . . . . . . . . . . . . . . . . . . . . . Robots Hopped 65 | . . . . . . . 12 . . . . 17 2 . 1 1 7 . 2 . . 5 13 . 5 Cave-ins Triggered . | . . . . . . . . . . . . . . . . . . . . . . . . . . Exploration Rate (%) 55 | 5 94 49 90 81 90 88 46 58 54 85 43 37 72 61 87 22 19 54 61 62 52 25 53 37 24 Regions Visited 25 Branch Regions 17 Pre-discovered Areas 15 | . 1 1 . 1 7 . . . . 2 . . . . . . . . . 3 . . . . . Known Exits Taken 16 | . 1 1 1 . . . 1 . . . 1 1 . . 1 1 1 1 1 1 1 1 1 1 . Unknown Exits Taken 9 | 1 . . . 1 1 1 . 1 1 1 . . 1 1 . . . . . . . . . . . Scrap Searched 28 | . . 1 . . . 12 . 1 2 4 3 . . . . . . . 4 . 1 . . . . Spaces Dug 214 | . . . . . . . 16 1 . . . 103 . . . 4 10 . . . . 51 17 3 9 Terrain Destroyed 590 | . . . 40 . . . 55 1 . . . 103 93 43 . 7 10 . . . . 74 55 3 106 Melee 96 | . . . . . . . 16 1 . . . 30 . . . 4 10 . . . . 6 17 3 9 Projectile 9 | . . . . . . . 4 . . . . . 2 . . 3 . . . . . . . . . AOE 485 | . . . 40 . . . 35 . . . . 73 91 43 . . . . . . . 68 38 . 97 Terrain Rammed . | . . . . . . . . . . . . . . . . . . . . . . . . . . Walls Destroyed . | . . . . . . . . . . . . . . . . . . . . . . . . . . Machines Disabled . | . . . . . . . . . . . . . . . . . . . . . . . . . . Actions | -11 -10 -10 -9 -9 -9 -9 -6 -6 -6 -6 -5 -5 -5 -5 -5 -5 -4 -4 -4 -4 -3 -3 -2 -2 -1 --------- Run | Yrd Mat Min Mat Sto Rec Scr Fac Low Low Zio Pro Fac Ext Cet Arc Hub Fac Upp Upp Zhi Pro Res Res Tes Acc Total 24962 | 77 890 238 1704 868 778 1334 2525 535 352 1354 464 2608 1162 281 1107 414 1360 286 391 199 342 765 2949 567 1412 Wait 3525 | . 58 19 219 171 20 17 192 122 39 231 182 312 49 39 590 8 111 3 4 . 13 56 474 81 515 Move 19643 | 61 722 208 1268 595 643 1282 2109 409 313 1104 261 2105 893 202 439 381 1181 283 385 180 329 655 2336 451 848 Hop 62 | . . . . . . . 11 . . . . 17 2 . 1 1 7 . 2 . . 4 13 . 4 Pick Up 204 | 2 27 3 33 10 6 13 19 1 . 6 5 11 20 3 5 2 7 . . 2 . 7 14 4 4 Fast Attach 124 | 7 2 . 8 17 . 1 10 1 . 4 1 14 8 6 6 1 6 . . 6 . 5 12 6 3 Attach 116 | . 4 1 8 3 . . 33 1 . 1 2 6 13 2 10 . 7 . . 2 . 5 12 3 3 Detach 47 | . . . 3 1 . . 8 . . 1 . 3 9 . 6 . 6 . . 1 . 1 6 1 1 Swap 146 | . 3 . 14 7 1 2 26 . . . 3 12 9 4 11 2 8 . . . . 7 20 4 13 Drop 194 | . 6 . 26 14 7 14 15 . . 6 5 16 11 6 17 2 12 . . 4 . 6 17 9 1 Fire 406 | 7 65 7 112 43 8 . 55 . . . . 15 42 19 10 12 . . . . . 4 3 . 4 Melee 212 | . . . . . . 5 29 1 . 1 5 43 17 . 12 5 14 . . 4 . 15 37 8 16 Ram . | . . . . . . . . . . . . . . . . . . . . . . . . . . Kick . | . . . . . . . . . . . . . . . . . . . . . . . . . . Crush 26 | . 3 . 13 7 1 . . . . . . . 2 . . . . . . . . . . . . Escape Stasis 130 | . . . . . . . 18 . . . . 54 54 . . . 1 . . . . . 3 . . Rewire 125 | . . . . . 92 . . . . . . . 33 . . . . . . . . . . . . Trap 2 | . . . . . . . . . . . . . . . . . . . . . . . 2 . . Miscellaneous . | . . . . . . . . . . . . . . . . . . . . . . . . . . Route ------- -11/Scrapyard -10/Materials (discovered 6 exits: *Mat x3 / *Min x2 / Sub) -10/Mines (discovered 4 exits: *Mat x2 / *Exi / *Sub) -9/Materials (discovered 6 exits: *Mat x3 / *Min / *Sto x2) -9/Storage -9/Recycling (discovered 2 exits: [*Fac] / *Scr) -9/Scraptown -6/Factory (discovered 3 exits: *Fac / *Low x2) -6/Lower Caves -6/Lower Caves -6/Zion -5/Proximity Caves -5/Factory (discovered 5 exits: *Fac x2 / Upp / *Ext x2) -5/Extension (discovered 3 exits: *Fac x2 / *Cet) -5/Cetus -5/Archives (discovered 3 exits: *Fac / *Hub x2) -5/Hub_04(d) -4/Factory (discovered 3 exits: *Upp x2 / Arm) -4/Upper Caves -4/Upper Caves -4/Zhirov -3/Proximity Caves -3/Research (discovered 2 exits: *Res / Qua) -2/Research (discovered 5 exits: *Acc x3 / *Tes x2) -2/Testing -1/Access (discovered 1 exit: Sur) History --------- Turn | Location | Event 6 | -11/Scrapyard | Discovered new exit (range 15) 130 | -11/Scrapyard | Entered Materials 302 | -10/Materials | Build established: Mutant 799 | -10/Materials | Discovered new exit (range 11) 889 | -10/Materials | Discovered new exit (range 11) 1274 | -10/Materials | Build established: Hauler-Mutant 1682 | -10/Materials | Lost 3 parts (2n1w) 1768 | -10/Materials | Discovered new exit (range 11) 2111 | -10/Materials | Central database locked down 2151 | -10/Materials | Discovered new exit (range 3) 2153 | -10/Materials | Learned location of 2 exits from Subcaves 2183 | -10/Materials | Learned Storage emergency access door positions 2216 | -10/Materials | Identified exit to Mines 2216 | -10/Materials | Identified exit to Subcaves 2220 | -10/Materials | Learned location of 2 exits from Mines 2221 | -10/Materials | Learned location of 2 exits from Materials 2295 | -10/Materials | Entered Mines 2296 | -10/Mines | Identified exit to Materials 2297 | -10/Mines | Identified exit to Exiles 2299 | -10/Mines | Learned location of Mines (-9) 2462 | -10/Mines | Found a damaged Exp. Sensor Array with a note attached 2471 | -10/Mines | Found Prototype Device 2773 | -10/Mines | Core integrity fell below 50% 3095 | -10/Mines | Deemed a non-threat by the Exiles lab entrance 3171 | -10/Mines | Entered Materials 3171 | -9/Materials | Accompanied by 2 allies 3171 | -9/Materials | Evolved 2 slots: Utility x2 3172 | -9/Materials | Identified exit to Mines 3172 | -9/Materials | Identified exit to Storage 3173 | -9/Materials | Identified exit to Materials 3178 | -9/Materials | Led the pair of lost Derelicts to an unsafe place 3581 | -9/Materials | Lost 3 parts (1p1n1u) 3874 | -9/Materials | Identified Exp. Sensor Array 4240 | -9/Materials | Repaired Broken Exp. Sensor Array 4455 | -9/Materials | Discovered exit to Materials (range 10) 5814 | -9/Materials | Central database locked down 6113 | -9/Materials | Discovered exit to Materials (range 6) 7257 | -9/Materials | Repaired Imp. Treads 8933 | -9/Materials | Entered Storage 9847 | -9/Storage | Learned location of Armory (-4) 9887 | -9/Storage | Core integrity fell below 50% 10325 | -9/Storage | Repaired Imp. Treads 10377 | -9/Storage | Repaired Adv. Beam Cannon 10417 | -9/Storage | Repaired Imp. Heat Sink 11495 | -9/Storage | Repaired Reflective Plating 11702 | -9/Storage | Used back door to open Recycling access 11702 | -9/Storage | Discovered new exit (range 5) 11718 | -9/Storage | Entered Recycling 12672 | -9/Recycling | Build established: Commander-Mutant 13838 | -9/Recycling | Discovered new exit (range 5) 14341 | -9/Recycling | Scanned before Scraplab entrance 14397 | -9/Recycling | Entered Scraplab 14429 | -9/Recycling | Discovered new exit (range 2) 14438 | -9/Recycling | Entered Scraptown 14438 | -9/Scraptown | Accompanied by 12 allies 14438 | -9/Scraptown | System corruption cleaned by C-Scrubber 14474 | -9/Scraptown | Heard Great Nut preacher, LISTEN AND RECITE! 15224 | -9/Scraptown | Discovered new exit (range 13) 15453 | -9/Scraptown | Visited Shadow of the Wyrm 15513 | -9/Scraptown | Visited IN-MT5's Study 15588 | -9/Scraptown | Visited Bundlers 16150 | -9/Scraptown | Visited Red Mages 16275 | -9/Scraptown | Found Relay Coupler [Proto] 16449 | -9/Scraptown | Visited Science Testing Area 16589 | -9/Scraptown | Visited SPCMW 16625 | -9/Scraptown | Visited Comm Corps 16713 | -9/Scraptown | Visited UFD Registry 16713 | -9/Scraptown | Registered with UFD as "Armorpod" 16826 | -9/Scraptown | Visited Supply Room 17020 | -9/Scraptown | Visited DA-N13 Charitable Foundation 17073 | -9/Scraptown | Found DCF Scrap (30 items) 17668 | -9/Scraptown | Visited LU-1G1's Boring Crew 17840 | -9/Scraptown | Visited Scrap Suit Storage 18132 | -9/Scraptown | Visited Science Guys 18268 | -9/Scraptown | Visited Abandonware Association 18317 | -9/Scraptown | Learned abandonware demo "ERRANTS.EXE" 18317 | -9/Scraptown | Learned abandonware demo "MELTYB.EXE" 18414 | -9/Scraptown | Visited Curators Association 18570 | -9/Scraptown | Visited Chapter 10 19607 | -9/Scraptown | Entered Factory 19607 | -6/Factory | Accompanied by 12 allies 19607 | -6/Factory | Evolved 6 slots: Propulsion x3, Utility x3 19843 | -6/Factory | Fabricated M-13 Machinist (x1) 20054 | -6/Factory | Fabricated Imp. Cesium-ion Thruster (x1) 21133 | -6/Factory | Garrison activated, responded to threat 21135 | -6/Factory | Build established: Hauler-Mutant 21214 | -6/Factory | Core integrity fell below 50% 21239 | -6/Factory | Lost 18 parts (2p4n11u1w) 21255 | -6/Factory | Discovered new exit (range 8) 21257 | -6/Factory | Identified exit to Lower Caves 21344 | -6/Factory | Discovered new exit (range 7) 21348 | -6/Factory | Identified exit to Factory 21431 | -6/Factory | Repaired Exp. Sensor Array 21452 | -6/Factory | Build established: Hacker-Sprinter 21516 | -6/Factory | Fabricated Imp. Cesium-ion Thruster? 21582 | -6/Factory | Fabricated Imp. Cesium-ion Thruster? 21607 | -6/Factory | Scrapoids reinforcements arrived? 21619 | -6/Factory | Garrison activated, responded to threat 21707 | -6/Factory | Search patrols dispatched 21767 | -6/Factory | Cargo convoy interrupted 21874 | -6/Factory | Entered Lower Caves 21898 | -6/Lower Caves | Spotted B-75 Beast 22041 | -6/Lower Caves | Learned 4 Factory zone layouts 22105 | -6/Lower Caves | Discovered new exit (range 11) 22111 | -6/Lower Caves | Entered another Lower Caves area 22204 | -6/Lower Caves | Learned Factory emergency access door positions 22206 | -6/Lower Caves | Discovered new exit (range 16) 22237 | -6/Lower Caves | Entered Zion 22244 | -6/Zion | Gained Derelict followers 22252 | -6/Zion | Gained Derelict followers 22258 | -6/Zion | System corruption cleaned by Quarantine Array 22316 | -6/Zion | Learned location of Quarantine (-3) 22329 | -6/Zion | Gained Derelict followers 22427 | -6/Zion | Turned away by Imprinter 22463 | -6/Zion | Given A8's code to call for help 22466 | -6/Zion | Learned 12 Factory zone layouts 22716 | -6/Zion | Discovered new exit (range 13) 22807 | -6/Zion | Entered Proximity Caves 22807 | -5/Proximity Caves | Accompanied by 11 allies 22903 | -5/Proximity Caves | Lost 3 allies 23005 | -5/Proximity Caves | Discovered exit to Factory (range 8) 23089 | -5/Proximity Caves | Entered Factory 23089 | -5/Factory | Accompanied by 8 allies 23089 | -5/Factory | Evolved 2 slots: Propulsion x1, Utility x1 23090 | -5/Factory | Identified exit to Upper Caves 23090 | -5/Factory | Identified exit to Extension 23188 | -5/Factory | Discovered new exit (range 13) 23191 | -5/Factory | Discovered new exit (range 15) 23404 | -5/Factory | Lost 3 allies 23485 | -5/Factory | Repaired Imp. Cesium-ion Thruster? 23850 | -5/Factory | Repaired Adv. Sensor Array 23995 | -5/Factory | Fabricated M-13 Machinist (x1) 24100 | -5/Factory | Fabricated G-50 Soldier? 24164 | -5/Factory | Entered Extension 24166 | -5/Extension | Lost 4 parts (2n2u) 24191 | -5/Extension | Rescued A7 24414 | -5/Extension | Spotted B-75 Beast 24455 | -5/Extension | Allies destroyed B-75 Beast 24456 | -5/Extension | Spotted B-75 Beast 24464 | -5/Extension | First assault squad dispatched 24471 | -5/Extension | Rewired B-75 Beast 24486 | -5/Extension | System corruption reached 10% 24535 | -5/Extension | Identified exit to Factory 24727 | -5/Extension | Build established: Scavenger-Mutant 24842 | -5/Extension | Rescued a captive Derelict 24851 | -5/Extension | Rescued a captive Derelict 24894 | -5/Extension | Rescued a captive Derelict 25164 | -5/Extension | Disrupted transfer network 25305 | -5/Extension | Discovered new exit (range 16) 25359 | -5/Extension | Entered Cetus 25359 | -5/Cetus | Accompanied by 9 allies (A7) 25364 | -5/Cetus | Acquired a Cetus Manufacturing Module code from A7 25381 | -5/Cetus | Spotted Cetus Guard 25381 | -5/Cetus | Spotted Cetus Guard 25383 | -5/Cetus | Spotted Cetus Guard 25383 | -5/Cetus | Spotted Cetus Guard 25396 | -5/Cetus | Allies destroyed Cetus Guard 25413 | -5/Cetus | Destroyed Cetus Guard 25413 | -5/Cetus | Allies destroyed Cetus Guard 25421 | -5/Cetus | Destroyed Cetus Guard 25443 | -5/Cetus | Lost 4 parts (2u2w) 25446 | -5/Cetus | Lost 6 allies 25512 | -5/Cetus | Started Cetus Manufacturing Module 25537 | -5/Cetus | Manufactured an Enhanced Grunt 25562 | -5/Cetus | Manufactured an Enhanced Grunt 25587 | -5/Cetus | Manufactured an Enhanced Grunt 25603 | -5/Cetus | Enhanced Grunt warped into view, answering call for help 25604 | -5/Cetus | Enhanced Grunt warped into view, answering call for help 25612 | -5/Cetus | Manufactured an Enhanced Grunt 25637 | -5/Cetus | Manufactured an Enhanced Grunt 25731 | -5/Cetus | Found a strange terminal 25758 | -5/Cetus | Discovered new exit (range 15) 25785 | -5/Cetus | Entered Archives 25785 | -5/Archives | Accompanied by 10 allies (A7) 25843 | -5/Archives | Discovered new exit (range 16) 25867 | -5/Archives | Identified exit to Hub_04(d) 26107 | -5/Archives | Unable to access archive contents 26177 | -5/Archives | Unable to access archive contents 26193 | -5/Archives | Unable to access archive contents 26585 | -5/Archives | Build established: Hacker-Sprinter 26912 | -5/Archives | Entered Hub_04(d) 26912 | -5/Hub_04(d) | Accompanied by 9 allies 26998 | -5/Hub_04(d) | Discovered exit to Factory (range 16) 27047 | -5/Hub_04(d) | Network Hub disabled 27049 | -5/Hub_04(d) | Spotted Lightning 27049 | -5/Hub_04(d) | Spotted Lightning 27049 | -5/Hub_04(d) | Spotted Lightning 27057 | -5/Hub_04(d) | Entered Factory 27057 | -4/Factory | Evolved 2 slots: Propulsion x1, Utility x1 27068 | -4/Factory | Identified exit to Upper Caves 27068 | -4/Factory | Identified exit to Armory 27225 | -4/Factory | Central database locked down 27249 | -4/Factory | Fabricated Exp. Propulsion Shielding? 27256 | -4/Factory | Fabricated Imp. Cesium-ion Thruster? 27370 | -4/Factory | Repaired Imp. Cesium-ion Thruster 27463 | -4/Factory | Lost 3 parts (1n1u1w) 27502 | -4/Factory | Entered Upper Caves 27504 | -4/Upper Caves | Identified exit to Upper Caves 27545 | -4/Upper Caves | Encountered a Warlord checkpoint 27573 | -4/Upper Caves | Entered another Upper Caves area 27581 | -4/Upper Caves | Learned location of 1 exit from Research 27602 | -4/Upper Caves | Learned Research stockpile data 27662 | -4/Upper Caves | Discovered new exit (range 9) 27665 | -4/Upper Caves | Identified exit to Zhirov 27671 | -4/Upper Caves | Entered Zhirov 27671 | -4/Zhirov | Discovered new exit (range 3) 27676 | -4/Zhirov | Met Zhirov 27683 | -4/Zhirov | Found Alien Artifact 27683 | -4/Zhirov | Identified Integrated Dissipator 27683 | -4/Zhirov | Installed Integrated Dissipator, increased core heat dissipation (+20) 27688 | -4/Zhirov | Found Alien Artifact 27729 | -4/Zhirov | Learned location of Testing (-2) 27730 | -4/Zhirov | Zhirov requested help retrieving the SGEMP Prototype 27734 | -4/Zhirov | Identified exit to Proximity Caves 27735 | -4/Zhirov | Entered Proximity Caves 27769 | -3/Proximity Caves | Spotted B-86 Titan 27784 | -3/Proximity Caves | Discovered new exit (range 8) 27785 | -3/Proximity Caves | Identified exit to Research 27804 | -3/Proximity Caves | Entered Research 27804 | -3/Research | Evolved 2 slots: Power x1, Utility x1 27805 | -3/Research | Identified exit to Quarantine 27923 | -3/Research | Scrapoids reinforcements arrived? 28025 | -3/Research | Lost 3 allies 28055 | -3/Research | Discovered new exit (range 16) 28067 | -3/Research | Identified exit to Research 28067 | -3/Research | Entered another Research area 28067 | -2/Research | Evolved 2 slots: Utility x2 28091 | -2/Research | Lost 8 parts (1p4n2u1w) 28203 | -2/Research | Identified exit to Testing 28207 | -2/Research | Discovered new exit (range 16) 28238 | -2/Research | Spotted B-90 Cyclops 28338 | -2/Research | Fabricated Exp. Hacking Suite? 28388 | -2/Research | Fabricated Exp. Propulsion Shielding? 28448 | -2/Research | Discovered new exit (range 22) 28879 | -2/Research | Discovered new exit (range 8) 28883 | -2/Research | Identified exit to Access 28902 | -2/Research | Spotted B-90 Cyclops 28933 | -2/Research | Repaired Imp. Utility Shielding 28955 | -2/Research | Repaired Field Propulsion Array 28983 | -2/Research | Build established: Wizard-Scout 29049 | -2/Research | Spotted B-90 Cyclops 29213 | -2/Research | Fabricated Exp. Q-thruster? 29238 | -2/Research | Entered Testing 29246 | -2/Testing | Found Prototype Device 29246 | -2/Testing | Identified AEGIS Remote Shield 29266 | -2/Testing | Found Prototype Energy Gun 29266 | -2/Testing | Identified Tachyon Dispersion Ray 29291 | -2/Testing | Spotted PL-5FXRBQOJF1 29316 | -2/Testing | Found Prototype Energy Gun 29316 | -2/Testing | Identified Hyp. EM Gauss Rifle 29455 | -2/Testing | Spotted PD-OQJEZH9L5W 29456 | -2/Testing | Entered Access 29456 | -1/Access | Evolved 2 slots: Utility x2 29778 | -1/Access | Build established: Wizard-Ninja 30027 | -1/Access | Scrapoids reinforcements arrived? 30190 | -1/Access | Identified exit to Surface 30212 | -1/Access | Self-destructed Last Messages --------------- 30196_ Lrn. Sensor Array destroyed. 30200_ ALERT: Suspicious intruders detected, dispatching Cutter reinforcements to area. 30201_ Sneak attack on K-01 Serf. 30201_ K-01 Serf destroyed. 30201_ Sealed Freight Elevator disabled. 30201_ Imp. Surge Thruster destroyed. 30202_ Structural Scanner destroyed. 30204_ Acquired 14 matter. 30206_ ALERT: Rogue bot located, Programmers report to Access Zone 7X. 30206_ Slug penetrates A-15 Conveyor. 30207_ W-44 Eye sends out distress signal. 30207_ Adv. Datajack destroyed. 30207_ Diametric Drive destroyed. 30208_ P-80 Master resets A-15 Conveyor, system corruption cleaned. 30209_ Imp. Cesium-ion Thruster severed. 30210_ Slug penetrates Wall. 30212_ Exp. Q-thruster severed. Map ----- +----------------------------------------------------+ | ??? # """""" | | ??? # """""" | | ??? ##### """"" ########### ########## | | ??? ##### ########### ########## | | ???????## ##????????? ##???????? | | ???????## ##????????? ##???????? | | ???????## = ##???????????????????? | | ???????## ! ########???????????????????? | | ???????## # ###???????????????????? | | ???????## ##### # ??????????????????????? | | ???????## ##### # ??????????????????????? | | ?????? ##?## # ??????????????????????? | | ??? ############?## ## #??????????????????????? | | ? ???###########?## ## #??????????????????????? | | #??????????????????## ## #??????????????????????? | | ???????????????????## ## #??????????????????????? | | ??????????###########/## #??????????????????????? | | ??????????# = # #??#############???????? | | ??????????# # #? #???????? | | ??????????# """"" # #? #???????? | | ??????????# """"" # # #???????? | | ??????????# """"" # # #???????? | | ??????????? """"" + c/ #???????? | | ???????????? """"" # # #???????? | | ????????????? """"" # c################???????? | | ???????????? # @#??????????????????????? | | ??????????# # #??????????????????????? | | ??????????# # #??????????????????????? | | ??????????# # h#??????????????????????? | | ??????????############## #??????????????????????? | | ???????????????????????# #??????????????????????? | | ???????????????????????# h#??????????????????????? | | ???????????????????????#h #??????????????????????? | | ???????????????????????# ??????????????????????? | | ???????????????????????# ??????????????????????? | | ???????????????????????# ??????????????????????? | | ???????????????????????/k ??????????????????????? | | ???????????????????????# ??????????????????????? | | ???????????????????????# ??????????????????????? | | ???????????????????????# ?????????????????????? | | ???????????????????????# ##?????????????????????? | | ???????????????????????# ???????????????????????? | | ???????????????????????# ???????????????????????? | | ???????????????????????? ???????????????????????? | | ???????????????????????? ???????????????????????? | | ???????????????????????? ???????????????????????? | | ???????????????????????? ???????????????????????? | | ?????????????????????????????????????????????????? | | ?????????????????????????????????????????????????? | | ?????????????????????????????????????????????????? | +----------------------------------------------------+ Best States ------------- Heat Dissipation 72 Energy Generation 32 Energy Capacity 355 Matter Stores 300 Matter Capacity 300 Sight Range 22 Robot Scan Range 20 Terrain Scan Range 16 Terrain Scan Density 10 ECM Strength 1 Jamming Range 12 Additional Mass Support 9 Armor Coverage 450 Resistance: TH 15 Core Shielding 40 Propulsion Shielding 90 Utility Shielding 66 Phase Shifting 5 Evasion (%) 77 Recoil Reduction 6 Offensive Hacking 64 Defensive Hacking 26 Authchip Count 4 Item Schematics ----------------- Exp. Sensor Array | -9/Materials | Scanalyzed Cooling System | -9/Materials | Hacked Imp. Signal Interpreter | -9/Storage | Hacked Pulse Rifle | -9/Storage | Hacked Lightning Gun | -9/Storage | Hacked Hrd. Medium Armor Plating | -9/Recycling | Hacked Utility Shielding | -9/Recycling | Hacked Arm. Treads | -9/Recycling | Hacked Imp. Cesium-ion Thruster | -6/Factory | Scanalyzed Adv. Weight Redist. System | -6/Factory | Scanalyzed Propulsion Shielding | -6/Factory | Scanalyzed ECM Suite | -6/Factory | Scanalyzed Hacking Suite | -6/Factory | Scanalyzed Lgt. Armor Plating | -6/Factory | Scanalyzed Battle Cannon | -6/Zion | Free Flamer | -6/Zion | Free Hvy. Riot Gun | -6/Zion | Free Barrage Gun | -6/Zion | Free Slug Cannon | -6/Zion | Free Tactical Coordination Suite | -6/Zion | Free Flexi-carbon Leg | -6/Zion | Archive Imp. Remote Datajack | -6/Zion | Archive Magnetic Acceleration Cannon | -6/Zion | Archive Adv. Shield Generator | -6/Zion | Archive Phase Cannon | -6/Zion | Archive Hvy. Pick | -6/Zion | Archive Imp. Force Field | -6/Zion | Archive Imp. System Guard | -6/Zion | Archive Stasis Canceller | -6/Zion | Archive Recoil Nullifier | -6/Zion | Archive Imp. Trap Scanner | -6/Zion | Archive Point Defense System | -6/Zion | Archive Exp. Utility Shielding | -5/Hub_04(d) | Hacked Exp. Propulsion Shielding | -5/Hub_04(d) | Hacked Adv. Signal Interpreter | -4/Factory | Hacked Assault Drone Bay | -4/Zhirov | Free Exp. Heat Sink | -4/Zhirov | Free Exp. Optical Array | -4/Zhirov | Free Imp. Arc Thrower | -4/Zhirov | Free Cld. Nuclear Pulse Thruster | -3/Research | Scanalyzed Exp. Hacking Suite | -2/Research | Hacked Exp. Q-thruster | -2/Research | Hacked Imp. Plasma Cutter | -2/Testing | Hacked Exp. Signal Interpreter | -2/Testing | Hacked Robot Schematics ------------------ M-13 Machinist | -9/Materials | Hacked Y-45 Defender | -9/Recycling | Hacked H-66 Slayer | -6/Zion | Archive T-07 Excavator | -6/Zion | Archive B-48 Gladiator | -6/Zion | Archive H-77 Assassin | -6/Zion | Archive H-88 Terminator | -2/Research | Hacked Fabricated ------------ M-13 Machinist | x1 | -6/Factory | Authchip Imp. Cesium-ion Thruster | x1 | -6/Factory | Authchip Imp. Cesium-ion Thruster | x1 | -6/Factory Imp. Cesium-ion Thruster | x1 | -6/Factory M-13 Machinist | x1 | -5/Factory G-50 Soldier | x3 | -5/Factory | Preloaded Exp. Propulsion Shielding | x1 | -4/Factory Imp. Cesium-ion Thruster | x1 | -4/Factory Exp. Hacking Suite | x1 | -2/Research Exp. Q-thruster | x1 | -2/Research Alien Tech Used ----------------- Integrated Dissipator Achievements -------------- None Challenges ------------ None Game ------ Seed FieldStormRifle Manual? 0 Play Time 05:33:17 Cumulative 188.1 hours Start 2025.01.06 @ 09:48:06 End 2025.01.07 @ 16:24:38 Sessions 5 Manual Loads 0 Difficulty Rogue Special Mode Winter2021/Sauler Game No. 96 Rogue 33 Adventurer 63 Explorer 0 Win Type - Total 8 Types 7/0/0/1/0/0/0/0/0 Lore% 73 Gallery% 70 Achievement% 57 Wizard Run 0 Options --------- Layout 1 ASCII 0 Keyboard 1 Movement Numpad Keybinds 0 Fullscreen 2 Font 24/Terminus Map View 50x35 Zoom Use 0% Tactical HUD 1 Map Filters NONE Filters NONE Steam 1 RUN: de09868d-4bd2-4a7e-87fb-affccabc7ae0